Cogmind - Beta 14 @@@ ROGUE MODE // 2024.12.02 @ 02:20:47 Player: KURIIRI Result: Self-destructed Performance ------------- Evolutions (0) 0 Regions Visited (4) 800 Robots Destroyed (36) 180 Value Destroyed (879) 879 Prototype IDs (41) 820 Alien Tech Used (0) 0 Bonus (275) 275 TOTAL SCORE: 2954 Bonus ------- Aligned with FarCom 300 Friendly Fire -25 Cogmind --------- Core Integrity 60/250 Matter 231/300 Energy 250/250 System Corruption 2% Temperature Cool (0) Movement Rolling (125) Ox3 Location -9/Mines Parts ------- > --- POWER (1) -------- Ion Engine > --- PROPULSION (2) --- Light Treads Wheel > --- UTILITY (2) ------ Large Storage Unit Hardened Light Armor Plating > --- WEAPON (2) ------- Beam Rifle Heavy Assault Rifle > --- INVENTORY (15) --- Ion Engine Fission Core Light Fission Core Light Armor Plating Beam Rifle EMP Blaster Datajack Longsword +1 Heavy Explosive Trap Heavy Explosive Trap Heavy Explosive Trap Heavy Explosive Trap Heavy Explosive Trap Peak State ------------ > --- POWER ------------ Ion Engine > --- PROPULSION ------- Light Treads Aluminum Leg > --- UTILITY ---------- Large Storage Unit Hardened Light Armor Plating > --- WEAPON ----------- Beam Rifle Heavy Assault Rifle > --- INVENTORY -------- Ion Engine Fission Core Light Fission Core Light Armor Plating Beam Rifle EMP Blaster Datajack Longsword +1 Heavy Explosive Trap Heavy Explosive Trap Heavy Explosive Trap Heavy Explosive Trap Heavy Explosive Trap [Rating: 13] Favorites ----------- Power Ion Engine Engine Ion Engine Propulsion Light Treads Treads Light Treads Leg Aluminum Leg Wheel Compact Wheel Utility Light Armor Plating Storage Large Storage Unit Protection Light Armor Plating Weapon Light EM Pulse Cannon Energy Gun Medium Laser Energy Cannon Light EM Pulse Cannon Ballistic Gun Assault Rifle Launcher Rocket Launcher Special Melee Weapon Datajack Build | -11 -10 -10 -10 -9 ------- Run | Yrd Mat Min Exi Min Slots Evolved . | . . . . . Power . | . . . . . Propulsion . | . . . . . Utility . | . . . . . Weapon . | . . . . . Parts Attached 33 | 7 11 2 1 12 Power 2 | 1 1 . . . Engine 2 | 1 1 . . . Core . | . . . . . Reactor . | . . . . . Propulsion 10 | 2 3 2 . 3 Treads 4 | 2 . 1 . 1 Leg 4 | . 3 . . 1 Wheel 2 | . . 1 . 1 Hover . | . . . . . Flight . | . . . . . Utility 7 | 1 3 . . 3 Device . | . . . . . Storage 2 | 1 1 . . . Processor . | . . . . . Hackware . | . . . . . Protection 5 | . 2 . . 3 Artifact . | . . . . . Weapon 14 | 3 4 . 1 6 Energy Gun 4 | 2 1 . . 1 Energy Cannon 5 | . 2 . . 3 Ballistic Gun 3 | 1 1 . . 1 Ballistic Cannon . | . . . . . Launcher 1 | . . . . 1 Special Weapon . | . . . . . Impact Weapon . | . . . . . Slashing Weapon . | . . . . . Piercing Weapon . | . . . . . Special Melee Weapon 1 | . . . 1 . Unidentified Prototypes . | . . . . . Corrupted Parts 1 | . 1 . . . System Corruption 2 | . 2 . . . Parts Lost 8 | . 1 . . 7 Power . | . . . . . Propulsion 3 | . 1 . . 2 Utility 2 | . . . . 2 Weapon 3 | . . . . 3 Highest Loss Streak 7 | . 1 . . 7 To Critical Strikes . | . . . . . Average Slot Usage (%) 94 | . 98 100 83 81 Engine 14 | . 14 14 14 14 Treads 14 | . 18 6 14 6 Leg 8 | . 8 14 . 7 Wheel 3 | . . 6 14 3 Storage 14 | . 14 14 14 14 Protection 13 | . 12 14 14 13 Energy Gun 4 | . 6 . . 6 Energy Cannon 15 | . 15 28 . 9 Ballistic Gun 4 | . 6 . . 5 Special Melee Weapon 1 | . . . 11 . Peak Build Rating 13 | 6 10 10 10 13 Average Rating 8 | 4 8 10 8 9 On Entrance 7 | . 6 10 10 9 Naked Turns . | . . . . . Heaviest Build 36 | 13 36 36 36 36 Greatest Support 40 | 40 40 20 16 20 Greatest Overweight (x) 10 | . 1 2 2 10 Average Overweight (x) . | . . 1 1 2 Largest Inventory Capacity 15 | 8 15 15 15 15 Average Capacity 12 | 6 11 15 15 15 Most Carried 15 | 2 11 15 15 15 Average Carried 9 | 1 7 13 14 11 Final Capacity 15 | 8 15 15 15 15 Final Carried 15 | 2 11 14 15 13 Class Distribution -------------------- 94% | Mutant 5% | Scavenger-Mutant Dominant Class ---------------- Mutant | -10/Materials Mutant | -10/Mines Mutant | -10/Exiles Mutant | -9/Mines Resources | -11 -10 -10 -10 -9 ----------- Run | Yrd Mat Min Exi Min Matter Collected 662 | 238 232 47 . 145 Remotely . | . . . . . Salvage Created 1105 | . 829 110 . 166 Parts 62 | . 44 11 . 7 Haulers Intercepted . | . . . . . Recyclers Shooed . | . . . . . Parts Field Recycled . | . . . . . Retrieved Matter . | . . . . . Parts Self-Destructed . | . . . . . Prevented . | . . . . . Kills | -11 -10 -10 -10 -9 ------- Run | Yrd Mat Min Exi Min Combat Hostiles Destroyed 27 | . 17 3 . 7 Guns 6 | . 6 . . . Cannons 10 | . 7 1 . 2 AOE 8 | . 2 2 . 4 Classes Destroyed 6 | . 6 . . . Worker 3 | . 2 . . 1 Recycler 2 | . 1 1 . . Operator 1 | . 1 . . . Watcher 3 | . 3 . . . Swarmer 10 | . 3 3 . 4 Grunt 17 | . 14 . . 3 Best Kill Streak 6 | . 6 4 . 4 Combat Bots Only 4 | . 4 3 . 4 Max Kills in Single Turn 3 | . 2 2 . 3 Gunslinging 1 | . 1 . . . Exploded 3 | . 1 2 . 3 Melee . | . . . . . Uniques/NPCs Destroyed . | . . . . . Combat | -11 -10 -10 -10 -9 -------- Run | Yrd Mat Min Exi Min Hostile Shots Fired 146 | . 67 3 . 76 Missed 40 | . 15 2 . 23 Damage Taken 1432 | . 673 10 . 749 Core 190 | . 58 . . 132 Absorbed by Shields . | . . . . . Redirected to Shielding 43 | . 43 . . . Core Remaining (%) 100 | 100 . . . . Volleys Fired 89 | . 59 4 . 26 Largest 2 | . 2 2 . 2 Hottest 112 | . 112 112 . 112 Shots Fired 153 | . 114 8 . 31 Gun 71 | . 67 . . 4 Cannon 77 | . 47 8 . 22 Launcher 5 | . . . . 5 Special . | . . . . . Kinetic 36 | . 34 . . 2 Thermal 35 | . 33 . . 2 Explosive 5 | . . . . 5 Electromagnetic 77 | . 47 8 . 22 Robot Hit Streak 10 | . 10 4 . 3 Robot Miss Streak 5 | . 5 . . 3 Penetration Max . | . . . . . Secondary Targets 3 | . 3 . . . Max Gunslinging Chain 1 | . 1 . . . Shots Hit Robots 98 | . 76 3 4 15 Core Hits 40 | . 29 3 . 8 Critical Kills . | . . . . . Critical Parts Destroyed . | . . . . . Critical Strikes 5 | . 4 . . 1 Burn 3 | . 2 . . 1 Corrupt 2 | . 2 . . . Melee Attacks 8 | . . . 8 . Impact . | . . . . . Slashing . | . . . . . Piercing . | . . . . . Sneak Attacks 4 | . . . 4 . Combat Hostiles . | . . . . . Follow-up Attacks . | . . . . . Damage Inflicted 2566 | . 1613 218 . 735 Guns 673 | . 641 . . 32 Cannons 1087 | . 716 65 . 306 Explosions 803 | . 253 153 . 397 Melee . | . . . . . Ramming 3 | . 3 . . . Kinetic 345 | . 327 . . 18 Thermal 734 | . 567 153 . 14 Explosive 397 | . . . . 397 Electromagnetic 1087 | . 716 65 . 306 Impact . | . . . . . Slashing . | . . . . . Piercing . | . . . . . Highest Corruption 2 | . 2 2 2 2 Average Corruption 2 | . 2 2 2 2 Corruption Purged . | . . . . . Corruption Blocked . | . . . . . Effects 19 | . 4 9 6 . Message Errors 8 | . 3 4 1 . Matter Fused 3 | . . 3 . . Heat Flow Errors 3 | . . . 3 . Energy Discharges 1 | . 1 . . . Data Loss (minor) 2 | . . 1 1 . Data Loss (major) 2 | . . 1 1 . Overload Shots . | . . . . . Overflow Damage 112 | . 46 20 . 46 Projectiles 65 | . 36 20 . 9 Explosions 47 | . 10 . . 37 Melee . | . . . . . Knockbacks . | . . . . . Impact . | . . . . . Kinetic . | . . . . . Secondary . | . . . . . Self-Inflicted Damage 115 | . 68 . . 47 Shots 2 | . 1 . . 1 Rammed 1 | . 1 . . . Targets Rammed 1 | . 1 . . . Kicked . | . . . . . Crushed . | . . . . . Highest Temperature 333 | . 278 120 241 333 Average Temperature 116 | . 89 48 103 207 Received Heat Transfer 687 | . 318 . . 369 Effects 6 | . 5 . . 1 Energy Bleed 1 | . 1 . . . Interference 4 | . 4 . . . Matter Decay 1 | . . . . 1 Siege Activations . | . . . . . Robots Corrupted 2 | . 1 . . 1 Combat Hostiles 2 | . 1 . . 1 Parts Fried 4 | . 3 . . 1 Impact Corruptions . | . . . . . Robots Melted 1 | . 1 . . . Combat Hostiles 1 | . 1 . . . Parts Melted 1 | . 1 . . . Heat Transferred 1534 | . 1273 150 . 111 Parts Sabotaged . | . . . . . Parts Stolen . | . . . . . Parts Stripped . | . . . . . Power Chain Reactions 2 | . 2 . . . Alert | -11 -10 -10 -10 -9 ------- Run | Yrd Mat Min Exi Min Peak Influence 311 | . 311 203 . 192 Initial 87 | . . 87 . . Average 137 | . 151 97 . 178 Maximum Alert Level 1 | . 1 1 . . Low Security (%) 74 | 100 59 93 . 100 Level 1 25 | . 40 6 . . Level 2 . | . . . . . Level 3 . | . . . . . Level 4 . | . . . . . Level 5 . | . . . . . High Security . | . . . . . Max Security . | . . . . . Squads Dispatched 4 | . 4 . . . Investigation 3 | . 3 . . . Extermination . | . . . . . Reinforcement 1 | . 1 . . . Assault . | . . . . . Garrison . | . . . . . Intercept . | . . . . . Searches Triggered . | . . . . . Construction Impeded . | . . . . . Haulers Reinforced . | . . . . . Active Scanning Responses . | . . . . . Cargo Convoy Interrupts . | . . . . . Stealth | -11 -10 -10 -10 -9 --------- Run | Yrd Mat Min Exi Min Distress Signals 3 | . 3 . . . Communications Jammed . | . . . . . Distress Signals . | . . . . . Times Spotted 35 | . 24 2 . 9 Peak Tracking Total 5 | . 5 3 . 4 Tactical Retreats 2 | . 2 . . . Traps | -11 -10 -10 -10 -9 ------- Run | Yrd Mat Min Exi Min Traps Triggered . | . . . . . Indirectly . | . . . . . Trap Hack Attempts . | . . . . . Triggered . | . . . . . Disarmed . | . . . . . Reprogrammed . | . . . . . Reused . | . . . . . Traps Extracted . | . . . . . Installed . | . . . . . Triggered . | . . . . . Most Traps Carried 5 | . . 5 5 5 Machines | -11 -10 -10 -10 -9 ---------- Run | Yrd Mat Min Exi Min Machines Disabled 7 | . 3 2 . 2 Max in Single Turn 3 | . 3 1 . 2 Machines Repaired . | . . . . . Machines Dismantled . | . . . . . Machines Sabotaged . | . . . . . Overloaded Fab Kills . | . . . . . Hacking | -11 -10 -10 -10 -9 --------- Run | Yrd Mat Min Exi Min Machines Accessed 12 | . 10 . 2 . Terminals 8 | . 8 . . . Fabricators . | . . . . . Repair Stations . | . . . . . Recycling Units 2 | . 2 . . . Scanalyzers . | . . . . . Garrison Access . | . . . . . Total Hacks 34 | . 30 . 4 . Successful 21 | . 17 . 4 . Failed 13 | . 13 . . . Catastrophic 2 | . 2 . . . Database Lockouts . | . . . . . Manual 25 | . 24 . 1 . Terminals 28 | . 28 . . . Fabricators . | . . . . . Repair Stations . | . . . . . Recycling Units 2 | . 2 . . . Scanalyzers . | . . . . . Garrison Access . | . . . . . Terminal Hacks 10 | . 6 . 4 . Record 3 | . . . 3 . Robot Analysis 2 | . 2 . . . Prototype ID Bank 2 | . 2 . . . Locate Traps 1 | . 1 . . . Recall Reinforcements 1 | . 1 . . . Derelict Proto ID Bank 1 | . . . 1 . Fabricator Hacks . | . . . . . Repair Station Hacks . | . . . . . Recycling Unit Hacks . | . . . . . Scanalyzer . | . . . . . Garrison Access Hacks . | . . . . . Unauthorized Hacks 11 | . 11 . . . Terminals 9 | . 9 . . . Botnet 2 | . 2 . . . Skim 7 | . 7 . . . Fabricators . | . . . . . Repair Stations . | . . . . . Recycling Units 2 | . 2 . . . Tunnel 2 | . 2 . . . Scanalyzers . | . . . . . Garrison Access . | . . . . . Data Cores Recovered . | . . . . . Used . | . . . . . Hacking Detections 8 | . 8 . . . Full Trace Events 2 | . 2 . . . Feedback Events . | . . . . . Feedback Blocked . | . . . . . Robot Schematics Acquired . | . . . . . Robots Built . | . . . . . Authchips . | . . . . . Time . | . . . . . Total Robot Build Rating . | . . . . . Part Schematics Acquired . | . . . . . Parts Built . | . . . . . Authchips . | . . . . . Time . | . . . . . Total Part Build Rating . | . . . . . Parts Repaired . | . . . . . Time . | . . . . . Parts Recycled . | . . . . . Recycled Matter . | . . . . . Retrieved Matter . | . . . . . Retrieved Components . | . . . . . Parts Scanalyzed . | . . . . . Part Schematics Acquired . | . . . . . Parts Damaged . | . . . . . Bothacking | -11 -10 -10 -10 -9 ------------ Run | Yrd Mat Min Exi Min Used RIF Installer . | . . . . . Robots Hacked 4 | . . . 4 . Non-combat 3 | . . . 3 . Combat 1 | . . . 1 . Robot Hacks Applied 4 | . . . 4 . parse_system 4 | . . . 4 . Relay Couplers Released . | . . . . . Fabnet Peak Effective % . | . . . . . Robots Rewired . | . . . . . Allies Hacked . | . . . . . Hacks Repelled . | . . . . . Allies | -11 -10 -10 -10 -9 -------- Run | Yrd Mat Min Exi Min Total Allies 2 | . . . . 2 Largest Group 2 | . . . . 2 Highest-Rated Group 38 | . . . . 38 Highest-Rated Ally 31 | . . . . 31 Total Orders . | . . . . . Ally Attacks . | . . . . . Total Damage . | . . . . . Kills . | . . . . . Allies Corrupted . | . . . . . Allies Melted . | . . . . . Intel | -11 -10 -10 -10 -9 ------- Run | Yrd Mat Min Exi Min Robot Analysis Total 2 | . 2 . . . Derelict Logs Recovered 2 | . . 1 . 1 Drone Launches . | . . . . . Drone Recoveries . | . . . . . Exploration | -11 -10 -10 -10 -9 ------------- Run | Yrd Mat Min Exi Min Turns Passed 2624 | 94 1374 529 284 343 Spaces Moved 1258 | 55 534 326 231 112 Core 7 | 5 . . . 2 Treads 470 | 50 392 . . 28 Legs 308 | . 142 137 . 29 Wheels 473 | . . 189 231 53 Hover . | . . . . . Flight . | . . . . . Fastest Speed 50 | 50 160 130 115 125 Average Speed 159 | 150 170 155 115 214 Slowest Speed 550 | 160 240 190 130 550 Overloaded Moves . | . . . . . Propulsion Burnouts . | . . . . . Robots Hopped . | . . . . . Cave-ins Triggered . | . . . . . Exploration Rate (%) 49 | 4 97 52 63 31 Regions Visited 4 Branch Regions 3 Pre-discovered Areas 4 | . 2 . 1 1 Known Exits Taken . | . . . . . Unknown Exits Taken 4 | 1 1 1 1 . Scrap Searched 2 | . . 2 . . Spaces Dug . | . . . . . Terrain Destroyed 112 | . 43 11 . 58 Melee . | . . . . . Projectile . | . . . . . AOE 112 | . 43 11 . 58 Terrain Rammed . | . . . . . Walls Destroyed . | . . . . . Machines Disabled . | . . . . . Actions | -11 -10 -10 -10 -9 --------- Run | Yrd Mat Min Exi Min Total 1715 | 63 883 342 247 180 Wait 286 | . 259 . . 27 Move 1254 | 54 533 325 230 112 Hop . | . . . . . Pick Up 27 | 2 13 7 3 2 Fast Attach 12 | 6 2 . . 4 Attach 6 | . . . 1 5 Detach 2 | . . . 2 . Swap 15 | 1 9 2 . 3 Drop 15 | . 7 4 3 1 Fire 89 | . 59 4 . 26 Melee 8 | . . . 8 . Ram . | . . . . . Kick . | . . . . . Crush 1 | . 1 . . . Escape Stasis . | . . . . . Rewire . | . . . . . Trap . | . . . . . Miscellaneous . | . . . . . Route ------- -11/Scrapyard -10/Materials (discovered 5 exits: *Mat x3 / [*Min] / Sub) -10/Mines (discovered 3 exits: Mat x2 / *Exi) -10/Exiles -9/Mines (discovered 1 exit: Mat) History --------- Turn | Location | Event 3 | -11/Scrapyard | Discovered new exit (range 15) 95 | -11/Scrapyard | Entered Materials 317 | -10/Materials | Build established: Mutant 339 | -10/Materials | Discovered new exit (range 13) 484 | -10/Materials | Discovered new exit (range 3) 892 | -10/Materials | Discovered new exit (range 14) 1120 | -10/Materials | Discovered new exit (range 10) 1202 | -10/Materials | Learned location of 1 exit from Recycling 1253 | -10/Materials | Learned location of 1 exit from Recycling 1331 | -10/Materials | Learned 2 Mines zone layouts 1357 | -10/Materials | Identified exit to Subcaves 1357 | -10/Materials | Learned location of 1 exit from Materials 1391 | -10/Materials | Learned location of 2 exits from Materials 1435 | -10/Materials | Learned 2 Storage zone layouts 1469 | -10/Materials | Entered Mines 1470 | -10/Mines | Identified exit to Materials 1534 | -10/Mines | Learned Materials security intel 1641 | -10/Mines | Found a hidden stash of uninstalled traps 1662 | -10/Mines | Deemed a non-threat by the Exiles lab entrance 1662 | -10/Mines | Discovered new exit (range 5) 1902 | -10/Mines | Assembled infested the area 1907 | -10/Mines | Assisted by a Guerilla fighting off Assembled 1998 | -10/Mines | Entered Exiles 2040 | -10/Exiles | Met 8R-AWN 2064 | -10/Exiles | Met EX-HEX 2096 | -10/Exiles | Met EX-BIN 2111 | -10/Exiles | Aligned with FarCom system 2112 | -10/Exiles | Given EX-Vault access code 2143 | -10/Exiles | Opened EX-Vault 2149 | -10/Exiles | Found Longsword +1 2174 | -10/Exiles | Warned to stay clear of 0b10 Research branches 2205 | -10/Exiles | Met EX-DEC 2239 | -10/Exiles | Learned location of Zion (-7) 2273 | -10/Exiles | Discovered new exit (range 10) 2282 | -10/Exiles | Left Exiles lab with Longsword +1 2282 | -10/Exiles | Entered Mines 2283 | -9/Mines | Identified exit to Materials 2339 | -9/Mines | Core integrity fell below 50% 2360 | -9/Mines | Lost 7 parts (2n2u3w) 2457 | -9/Mines | Joined a pair of Derelicts in attacking an 0b10 outpost 2625 | -9/Mines | Self-destructed Last Messages --------------- to send in Demolishers again..." 02489_ Acquired Hvy. Assault Rifle. 02493_ Acquired Beam Rifle. 02508_ U-05 Engineer lays Concrete. 02512_ K-01 Serf collects debris. 02540_ U-05 Engineer lays Concrete. 02542_ U-05 Engineer builds a Wall. 02544_ K-01 Serf suffers critical hit (Burn). 02547_ K-01 Serf collects debris. 02547_ K-01 Serf destroyed. 02547_ U-05 Engineer lays Concrete. 02557_ Acquired Wheel. 02558_ Acquired 21 matter. 02575_ U-05 Engineer lays Concrete. 02577_ U-05 Engineer builds a Wall. 02582_ U-05 Engineer lays Concrete. 02584_ U-05 Engineer builds a Wall. 02601_ A pair of derelicts emerge from the shadows: "We're, um, lost. You wouldn't happen to know the way out of here, would you?" Map ----- +----------------------------------------------------+ | ####????##"% "##?????????????????????????????????? | | ###### !! !#?????????????????????????????????? | | ##!!!%!!#???? #???????????????????????????? | | ### ] ##? #????????????????????????????? | | ####++### #????????????????????????????? | | # #????????????????????????????? | | #????????????????????????????? | | ## ##????????????????????????????? | | # ###?????????????????????????????? | | ## ##???????????????????????????????? | | # #????????????????????????????????? | | #????????????????????????????????? | | # ### ##????????????????????????????????? | | #= ##?### ##?????????????????????????????????? | | [[ #???# #?????????????????????????????????